[Event "Elite Hotels Open 2024"]
[Site "Elite Stadshotellet, Kungsgatan 6, Vaxjo, Sweden"]
[Date "2024.02.10"]
[Round "5.9"]
[White "Fransson, Patrick"]
[Black "Jacobsen, Mikkel Manosri"]
[Result "1-0"]
[TimeControl "15 minutes + 5 seconds per move from move one (Round 1 - 4) / 90 minutes + 30 seconds per move from move one (Round 5 - 8)"]
[BlackTitle "FM"]
[WhiteFideId "1709305"]
[BlackFideId "1444514"]
[WhiteElo "2086"]
[BlackElo "2374"]

1. d4 {[%clk 01:30:54]} {[%emt 00:00:05]} d5 {[%clk 01:30:56]} {[%emt
00:00:04]} 2. Bg5 {[%clk 01:31:18]} {[%emt 00:00:06]} f6 {[%clk 01:31:03]}
{[%emt 00:00:23]} 3. Bf4 {[%clk 01:31:43]} {[%emt 00:00:05]} c5 {[%clk
01:31:28]} {[%emt 00:00:05]} 4. e3 {[%clk 01:29:43]} {[%emt 00:02:30]} Nc6
{[%clk 01:31:52]} {[%emt 00:00:07]} 5. c3 {[%clk 01:22:49]} {[%emt 00:07:23]}
Bf5 {[%clk 01:18:43]} {[%emt 00:13:38]} 6. g4 {[%clk 01:09:44]} {[%emt
00:13:35]} Bg6 {[%clk 01:18:57]} {[%emt 00:00:17]} 7. Bg2 {[%clk 01:08:47]}
{[%emt 00:01:27]} e6 {[%clk 01:18:43]} {[%emt 00:00:44]} 8. h4 {[%clk
01:04:47]} {[%emt 00:04:29]} h6 {[%clk 01:14:03]} {[%emt 00:05:09]} 9. Ne2
{[%clk 01:01:36]} {[%emt 00:03:41]} Qb6 {[%clk 01:12:49]} {[%emt 00:01:44]} 10.
Nd2 {[%clk 00:46:40]} {[%emt 00:15:26]} cxd4 {[%clk 00:50:45]} {[%emt
00:22:34]} 11. exd4 {[%clk 00:45:45]} {[%emt 00:01:25]} Qxb2 {[%clk 00:49:58]}
{[%emt 00:01:17]} 12. O-O {[%clk 00:45:08]} {[%emt 00:01:06]} Bd3 {[%clk
00:40:12]} {[%emt 00:10:17]} 13. Bg3 {[%clk 00:21:40]} {[%emt 00:23:59]} Kf7
{[%clk 00:33:38]} {[%emt 00:07:04]} 14. Nf4 {[%clk 00:16:42]} {[%emt 00:05:28]}
Bxf1 {[%clk 00:27:56]} {[%emt 00:06:11]} 15. Rb1 {[%clk 00:14:37]} {[%emt
00:02:36]} Qxc3 {[%clk 00:27:31]} {[%emt 00:00:55]} 16. Rxb7+ {[%clk 00:14:40]}
{[%emt 00:00:27]} Nge7 {[%clk 00:27:25]} {[%emt 00:00:35]} 17. Nxf1 {[%clk
00:14:10]} {[%emt 00:01:00]} Nxd4 {[%clk 00:11:56]} {[%emt 00:15:59]} 18. Ne3
{[%clk 00:11:04]} {[%emt 00:03:36]} Rc8 {[%clk 00:09:40]} {[%emt 00:02:46]} 19.
Kh2 {[%clk 00:10:55]} {[%emt 00:00:39]} g5 {[%clk 00:07:53]} {[%emt 00:02:17]}
20. Nfxd5 {[%clk 00:06:47]} {[%emt 00:04:38]} exd5 {[%clk 00:08:17]} {[%emt
00:00:06]} 21. Nxd5 {[%clk 00:07:08]} {[%emt 00:00:09]} Qc5 {[%clk 00:07:20]}
{[%emt 00:01:26]} 22. h5 {[%clk 00:06:09]} {[%emt 00:01:30]} Rg8 {[%clk
00:04:45]} {[%emt 00:03:04]} 23. Qd3 {[%clk 00:04:04]} {[%emt 00:02:36]} Rg7
{[%clk 00:03:29]} {[%emt 00:01:47]} 24. Qe4 {[%clk 00:01:14]} {[%emt 00:03:20]}
Ne6 {[%clk 00:00:54]} {[%emt 00:03:05]} 25. Qf5 {[%clk 00:01:00]} {[%emt
00:00:44]} Qd4 {[%clk 00:01:01]} {[%emt 00:00:22]} 26. Nxe7 {[%clk 00:01:14]}
{[%emt 00:00:16]} Bxe7 {[%clk 00:00:52]} {[%emt 00:00:39]} 27. Bd5 {[%clk
00:01:38]} {[%emt 00:00:06]} Kf8 {[%clk 00:00:49]} {[%emt 00:00:34]} 28. Qxe6
{[%clk 00:01:51]} {[%emt 00:00:17]} Rd8 {[%clk 00:00:44]} {[%emt 00:00:35]} 29.
Rxe7 {[%clk 00:01:59]} {[%emt 00:00:22]} Qxd5 {[%clk 00:00:32]} {[%emt
00:00:42]} 30. Re8+ {[%clk 00:02:03]} {[%emt 00:00:26]} Rxe8 {[%clk 00:00:49]}
{[%emt 00:00:12]} 31. Qxd5 {[%clk 00:02:29]} {[%emt 00:00:05]} Rf7 {[%clk
00:01:11]} {[%emt 00:00:08]} 32. Qf5 {[%clk 00:02:33]} {[%emt 00:00:26]} Rd8
{[%clk 00:01:17]} {[%emt 00:00:24]} 33. Qg6 {[%clk 00:01:57]} {[%emt 00:01:06]}
Ke7 {[%clk 00:01:46]} 34. Qe4+ {[%clk 00:01:55]} {[%emt 00:00:32]} Kf8 {[%clk
00:02:15]} {[%emt 00:00:01]} 35. Qe6 {[%clk 00:02:08]} {[%emt 00:00:17]} Kg7
{[%clk 00:02:06]} {[%emt 00:00:39]} 36. Bd6 {[%clk 00:02:14]} {[%emt 00:00:24]}
Rdd7 {[%clk 00:01:59]} {[%emt 00:00:38]} 37. Bc5 {[%clk 00:02:20]} {[%emt
00:00:23]} Kg8 {[%clk 00:00:40]} {[%emt 00:01:49]} 38. Qf5 {[%clk 00:02:32]}
{[%emt 00:00:19]} Rc7 {[%clk 00:00:43]} {[%emt 00:00:26]} 39. Bd4 {[%clk
00:02:22]} {[%emt 00:00:40]} Rc4 {[%clk 00:00:47]} {[%emt 00:00:26]} 40. Qg6+
{[%clk 00:01:50]} {[%emt 00:01:03]} Kf8 {[%clk 00:01:16]} {[%emt 00:00:01]} 41.
Qxh6+ {[%clk 00:01:57]} {[%emt 00:00:23]} Ke7 {[%clk 00:01:28]} {[%emt
00:00:18]} 42. Be3 {[%clk 00:02:05]} {[%emt 00:00:22]} Rxg4 {[%clk 00:01:18]}
{[%emt 00:00:40]} 43. Qg6 {[%clk 00:02:14]} {[%emt 00:00:21]} Ke6 {[%clk
00:01:30]} {[%emt 00:00:18]} 44. Kh3 {[%clk 00:00:53]} {[%emt 00:01:52]} Rh4+
{[%clk 00:01:23]} {[%emt 00:00:37]} 45. Kg3 {[%clk 00:01:22]} {[%emt 00:00:02]}
Ra4 {[%clk 00:00:49]} {[%emt 00:01:03]} 46. h6 {[%clk 00:01:20]} {[%emt
00:00:32]} Rc4 {[%clk 00:00:48]} {[%emt 00:00:31]} 47. Bxg5 {[%clk 00:01:21]}
{[%emt 00:00:29]} Rcc7 {[%clk 00:01:00]} {[%emt 00:00:18]} 48. Qe4+ {[%clk
00:01:33]} {[%emt 00:00:19]} Kd7 {[%clk 00:01:20]} {[%emt 00:00:10]} 49. h7
{[%clk 00:01:41]} {[%emt 00:00:21]} fxg5 {[%clk 00:00:40]} {[%emt 00:01:10]} 50.
h8=Q {[%clk 00:01:32]} {[%emt 00:00:39]} Re7 {[%clk 00:00:55]} {[%emt
00:00:16]} 51. Qd5# {[%clk 00:01:55]} {[%emt 00:00:07]} 1-0

[Event "Elite Hotels Open 2024"]
[Site "Elite Stadshotellet, Kungsgatan 6, Vaxjo, Sweden"]
[Date "2024.02.10"]
[Round "5.10"]
[White "Neretljak, Nedzad"]
[Black "Kistrup, Nicolai"]
[Result "0-1"]
[TimeControl "15 minutes + 5 seconds per move from move one (Round 1 - 4) / 90 minutes + 30 seconds per move from move one (Round 5 - 8)"]
[WhiteTitle "CM"]
[BlackTitle "FM"]
[WhiteFideId "1713132"]
[BlackFideId "1444816"]
[WhiteElo "2032"]
[BlackElo "2326"]

1. e4 {[%clk 01:30:57]} {[%emt 00:00:02]} e5 {[%clk 01:30:55]} {[%emt
00:00:05]} 2. Nf3 {[%clk 01:31:15]} {[%emt 00:00:11]} Nc6 {[%clk 01:31:20]}
{[%emt 00:00:06]} 3. Bc4 {[%clk 01:31:15]} {[%emt 00:00:30]} Nf6 {[%clk
01:31:39]} {[%emt 00:00:11]} 4. d3 {[%clk 01:30:57]} {[%emt 00:00:48]} Bc5
{[%clk 01:32:04]} {[%emt 00:00:05]} 5. O-O {[%clk 01:30:45]} {[%emt 00:00:42]}
O-O {[%clk 01:32:26]} {[%emt 00:00:08]} 6. a3 {[%clk 01:28:24]} {[%emt
00:02:51]} d6 {[%clk 01:29:46]} {[%emt 00:03:10]} 7. b4 {[%clk 01:28:44]}
{[%emt 00:00:09]} Bb6 {[%clk 01:30:08]} {[%emt 00:00:08]} 8. h3 {[%clk
01:29:09]} {[%emt 00:00:05]} Ne7 {[%clk 01:21:43]} {[%emt 00:08:56]} 9. Nc3
{[%clk 01:27:33]} {[%emt 00:02:04]} c6 {[%clk 01:21:03]} {[%emt 00:01:11]} 10.
Bg5 {[%clk 01:22:30]} {[%emt 00:05:33]} Ng6 {[%clk 01:18:35]} {[%emt 00:02:58]}
11. d4 {[%clk 01:22:39]} {[%emt 00:00:20]} h6 {[%clk 01:09:02]} {[%emt
00:10:04]} 12. Be3 {[%clk 01:21:22]} {[%emt 00:01:45]} d5 {[%clk 00:52:57]}
{[%emt 00:16:37]} 13. exd5 {[%clk 01:16:47]} {[%emt 00:05:04]} e4 {[%clk
00:50:10]} {[%emt 00:03:16]} 14. Ne5 {[%clk 01:17:06]} {[%emt 00:00:12]} cxd5
{[%clk 00:49:18]} {[%emt 00:01:23]} 15. Bb3 {[%clk 01:05:32]} {[%emt 00:12:03]}
Bc7 {[%clk 00:39:02]} {[%emt 00:10:46]} 16. f4 {[%clk 00:57:06]} {[%emt
00:08:54]} exf3 {[%clk 00:37:29]} {[%emt 00:02:05]} 17. Nxf3 {[%clk 00:56:59]}
{[%emt 00:00:36]} Be6 {[%clk 00:36:12]} {[%emt 00:01:47]} 18. Qd2 {[%clk
00:50:53]} {[%emt 00:06:36]} Ne4 {[%clk 00:30:07]} {[%emt 00:06:35]} 19. Nxe4
{[%clk 00:47:10]} {[%emt 00:04:13]} dxe4 {[%clk 00:29:35]} {[%emt 00:01:03]} 20.
d5 {[%clk 00:46:16]} {[%emt 00:01:23]} Bc8 {[%clk 00:28:14]} {[%emt 00:01:52]}
21. Ne1 {[%clk 00:31:00]} {[%emt 00:15:46]} Qd6 {[%clk 00:27:54]} {[%emt
00:00:50]} 22. Bc5 {[%clk 00:29:43]} {[%emt 00:01:46]} Qh2+ {[%clk 00:26:26]}
{[%emt 00:01:58]} 23. Kf2 {[%clk 00:30:09]} {[%emt 00:00:05]} Bxh3 {[%clk
00:22:08]} {[%emt 00:04:48]} 24. d6 {[%clk 00:28:48]} {[%emt 00:01:50]} Bd8
{[%clk 00:22:13]} {[%emt 00:00:25]} 25. Qd5 {[%clk 00:19:09]} {[%emt 00:10:08]}
Nf4 {[%clk 00:17:43]} {[%emt 00:05:01]} 26. Qxb7 {[%clk 00:15:51]} {[%emt
00:03:49]} Nxg2 {[%clk 00:15:32]} {[%emt 00:02:41]} 27. Nxg2 {[%clk 00:11:53]}
{[%emt 00:04:27]} Qxg2+ {[%clk 00:15:46]} {[%emt 00:00:15]} 28. Ke3 {[%clk
00:12:19]} {[%emt 00:00:04]} Bg5+ {[%clk 00:15:24]} {[%emt 00:00:53]} 29. Kd4
{[%clk 00:11:47]} {[%emt 00:01:02]} Qd2+ {[%clk 00:15:19]} {[%emt 00:00:35]}
0-1

[Event "Elite Hotels Open 2024"]
[Site "Elite Stadshotellet, Kungsgatan 6, Vaxjo, Sweden"]
[Date "2024.02.10"]
[Round "5.11"]
[White "Falkevall, Axel"]
[Black "Bjorkman, Filip"]
[Result "1/2-1/2"]
[TimeControl "15 minutes + 5 seconds per move from move one (Round 1 - 4) / 90 minutes + 30 seconds per move from move one (Round 5 - 8)"]
[WhiteTitle "FM"]
[WhiteFideId "1735560"]
[BlackFideId "1734970"]
[WhiteElo "2290"]
[BlackElo "2046"]

1. e4 {[%clk 01:30:54]} {[%emt 00:00:05]} c5 {[%clk 01:30:18]} {[%emt
00:00:42]} 2. Nf3 {[%clk 01:30:59]} {[%emt 00:00:24]} Nc6 {[%clk 01:29:56]}
{[%emt 00:00:53]} 3. Bb5 {[%clk 01:31:18]} {[%emt 00:00:12]} g6 {[%clk
01:29:30]} {[%emt 00:00:55]} 4. Bxc6 {[%clk 01:30:53]} {[%emt 00:00:56]} dxc6
{[%clk 01:29:51]} {[%emt 00:00:08]} 5. d3 {[%clk 01:31:18]} {[%emt 00:00:05]}
Bg4 {[%clk 01:25:15]} {[%emt 00:05:06]} 6. h3 {[%clk 01:29:50]} {[%emt
00:01:59]} Bxf3 {[%clk 01:25:42]} {[%emt 00:00:02]} 7. Qxf3 {[%clk 01:30:14]}
{[%emt 00:00:06]} Bg7 {[%clk 01:26:05]} {[%emt 00:00:07]} 8. O-O {[%clk
01:29:33]} {[%emt 00:01:10]} e5 {[%clk 01:25:03]} {[%emt 00:01:32]} 9. a4
{[%clk 01:27:01]} {[%emt 00:03:03]} Nf6 {[%clk 01:23:25]} {[%emt 00:02:07]} 10.
Bg5 {[%clk 01:22:24]} {[%emt 00:05:07]} Qd6 {[%clk 01:23:05]} {[%emt 00:00:50]}
11. Bxf6 {[%clk 01:22:01]} {[%emt 00:00:53]} Bxf6 {[%clk 01:20:48]} {[%emt
00:02:47]} 12. Na3 {[%clk 01:21:11]} {[%emt 00:01:21]} O-O {[%clk 01:20:09]}
{[%emt 00:01:08]} 13. Nc4 {[%clk 01:20:27]} {[%emt 00:01:14]} Qe6 {[%clk
01:20:29]} {[%emt 00:00:11]} 14. Rae1 {[%clk 01:15:32]} {[%emt 00:05:24]} Bd8
{[%clk 01:11:51]} {[%emt 00:09:08]} 15. Qg4 {[%clk 01:07:54]} {[%emt 00:08:09]}
Qxg4 {[%clk 01:09:03]} {[%emt 00:03:19]} 16. hxg4 {[%clk 01:08:13]} {[%emt
00:00:10]} Bc7 {[%clk 01:09:28]} {[%emt 00:00:05]} 17. g3 {[%clk 01:04:43]}
{[%emt 00:04:00]} Kg7 {[%clk 00:39:34]} {[%emt 00:30:24]} 18. Kg2 {[%clk
01:02:16]} {[%emt 00:02:57]} b6 {[%clk 00:39:53]} {[%emt 00:00:12]} 19. Rh1
{[%clk 00:56:18]} {[%emt 00:06:28]} f6 {[%clk 00:37:03]} {[%emt 00:03:20]} 20.
Ref1 {[%clk 00:52:12]} {[%emt 00:04:36]} Rad8 {[%clk 00:35:23]} {[%emt
00:02:10]} 21. f4 {[%clk 00:46:40]} {[%emt 00:06:02]} Rde8 {[%clk 00:35:23]}
{[%emt 00:00:31]} 22. Ne3 {[%clk 00:40:28]} {[%emt 00:06:41]} Rd8 {[%clk
00:30:00]} {[%emt 00:05:53]} 23. b3 {[%clk 00:39:36]} {[%emt 00:01:22]} Rd7
{[%clk 00:29:16]} {[%emt 00:01:14]} 24. Nc4 {[%clk 00:38:11]} {[%emt 00:01:55]}
Rdd8 {[%clk 00:29:37]} {[%emt 00:00:09]} 25. Rf3 {[%clk 00:36:48]} {[%emt
00:01:52]} Rde8 {[%clk 00:29:22]} {[%emt 00:00:45]} 26. Rhf1 {[%clk 00:35:00]}
{[%emt 00:02:18]} Rd8 {[%clk 00:26:17]} {[%emt 00:03:35]} 27. Kh3 {[%clk
00:27:40]} {[%emt 00:07:50]} Rde8 {[%clk 00:20:15]} {[%emt 00:06:32]} 28. Ne3
{[%clk 00:20:48]} {[%emt 00:07:22]} Rd8 {[%clk 00:17:58]} {[%emt 00:02:47]} 29.
Kg2 {[%clk 00:19:32]} {[%emt 00:01:46]} Rde8 {[%clk 00:18:24]} {[%emt
00:00:04]} 30. Kf2 {[%clk 00:19:41]} {[%emt 00:00:21]} Rd8 {[%clk 00:17:21]}
{[%emt 00:01:33]} 31. Ke2 {[%clk 00:19:49]} {[%emt 00:00:21]} a6 {[%clk
00:17:47]} {[%emt 00:00:05]} 32. R3f2 {[%clk 00:18:27]} {[%emt 00:01:51]} Ra8
{[%clk 00:17:36]} {[%emt 00:00:42]} 33. Rh1 {[%clk 00:14:39]} {[%emt 00:04:18]}
Rae8 {[%clk 00:14:58]} {[%emt 00:03:07]} 34. Rfh2 {[%clk 00:14:06]} {[%emt
00:01:03]} Rh8 {[%clk 00:15:16]} {[%emt 00:00:13]} 35. Kf3 {[%clk 00:13:37]}
{[%emt 00:00:58]} Ref8 {[%clk 00:13:53]} {[%emt 00:01:53]} 36. Rf2 {[%clk
00:10:37]} {[%emt 00:03:30]} Rf7 {[%clk 00:13:57]} {[%emt 00:00:25]} 37. Ke2
{[%clk 00:10:29]} {[%emt 00:00:38]} Rb8 {[%clk 00:12:36]} {[%emt 00:01:52]} 38.
Kf3 {[%clk 00:05:44]} {[%emt 00:05:15]} Ra8 {[%clk 00:12:49]} {[%emt 00:00:17]}
39. Kg2 {[%clk 00:04:51]} {[%emt 00:01:22]} Rd8 {[%clk 00:12:24]} {[%emt
00:00:55]} 40. Rf3 {[%clk 00:04:27]} {[%emt 00:00:54]} Rff8 {[%clk 00:12:47]}
{[%emt 00:00:08]} 41. Kf2 {[%clk 00:04:17]} {[%emt 00:00:39]} Ra8 {[%clk
00:12:02]} {[%emt 00:01:15]} 42. Ke2 {[%clk 00:04:37]} {[%emt 00:00:11]} b5
{[%clk 00:11:55]} {[%emt 00:00:37]} 43. Ra1 {[%clk 00:04:54]} {[%emt 00:00:12]}
Ba5 {[%clk 00:12:18]} {[%emt 00:00:08]} 44. fxe5 {[%clk 00:04:05]} {[%emt
00:01:20]} fxe5 {[%clk 00:12:46]} {[%emt 00:00:01]} 45. Rxf8 {[%clk 00:04:18]}
{[%emt 00:00:17]} Kxf8 {[%clk 00:13:15]} {[%emt 00:00:01]} 46. axb5 {[%clk
00:04:10]} {[%emt 00:00:39]} axb5 {[%clk 00:13:39]} {[%emt 00:00:06]} 47. g5
{[%clk 00:04:11]} {[%emt 00:00:27]} Ke7 {[%clk 00:13:37]} {[%emt 00:00:33]} 48.
Rh1 {[%clk 00:02:19]} {[%emt 00:02:22]} Rh8 {[%clk 00:14:02]} {[%emt 00:00:05]}
49. Ra1 {[%clk 00:02:16]} {[%emt 00:00:33]} Bd8 {[%clk 00:12:04]} {[%emt
00:02:28]} 50. Ng4 {[%clk 00:02:16]} {[%emt 00:00:29]} Kd6 {[%clk 00:11:17]}
{[%emt 00:01:18]} 51. Ra8 {[%clk 00:02:21]} {[%emt 00:00:24]} Bf6 {[%clk
00:11:10]} {[%emt 00:00:37]} 52. Rxh8 {[%clk 00:02:00]} {[%emt 00:00:52]} Bxh8
{[%clk 00:11:38]} 53. c4 {[%clk 00:01:27]} {[%emt 00:01:02]} Bg7 {[%clk
00:04:27]} {[%emt 00:07:42]} 54. Kf3 {[%clk 00:01:29]} {[%emt 00:00:28]} Ke6
{[%clk 00:01:57]} {[%emt 00:03:00]} 55. Ne3 {[%clk 00:01:32]} {[%emt 00:00:26]}
b4 {[%clk 00:02:14]} {[%emt 00:00:13]} 56. Kg4 {[%clk 00:01:31]} {[%emt
00:00:31]} Bf8 {[%clk 00:02:07]} {[%emt 00:00:37]} 1/2-1/2